bitfinex/quotes_SOLUSD_20250219
["timestamp","ask_amount","ask_price","bid_price","bid_amount"]
[1739979586239,115.74412199,171.66,171.59,27.21872199]
[1739979586443,82.7,171.66,171.6,27.21872199]
[1739979586828,109.91872199,171.66,171.59,27.21872199]
[1739979587437,115.74422199,171.66,171.59,27.21872199]
[1739979588131,82.7,171.65,171.59,27.21872199]
[1739979588549,82.7,171.64,171.58,27.21872199]
[1739979588750,27.21872199,171.63,171.57,27.21872199]
[1739979588950,27.21872199,171.62,171.56,27.21872199]
[1739979589459,27.21872199,171.63,171.56,27.21872199]
[1739979589665,27.21872199,171.63,171.57,5.8285]
[1739979590169,82.7,171.62,171.57,5.8285]
[1739979590343,82.7,171.62,171.55,30.18312694]
[1739979590344,82.7,171.61,171.55,30.18312694]
[1739979590545,27.21872199,171.6,171.54,27.21872199]
[1739979590866,27.21872199,171.6,171.54,5.8295]
[1739979591041,27.21872199,171.58,171.52,27.21872199]
[1739979591229,82.7,171.58,171.53,0.063]
[1739979591633,82.7,171.58,171.53,5.8928]
[1739979591867,82.7,171.58,171.54,27.21872199]
[1739979592238,82.7,171.58,171.55,27.21872199]
[1739979592445,109.91872199,171.63,171.57,27.21872199]
[1739979593771,109.91872199,171.63,171.53,101.3675]
[1739979593772,109.91872199,171.62,171.55,27.21872199]
[1739979594153,27.21872199,171.61,171.55,27.21872199]
[1739979594652,109.91872199,171.62,171.55,27.21872199]
[1739979595073,27.21872199,171.61,171.55,27.21872199]
[1739979595367,27.21872199,171.61,171.54,33.04822199]
[1739979595572,82.7,171.6,171.53,0.063]
[1739979595753,27.21872199,171.58,171.53,5.8928]
[1739979595953,82.7,171.59,171.53,5.8928]
[1739979595954,109.91872199,171.59,171.53,5.8928]
[1739979596339,27.21872199,171.58,171.53,5.8928]
[1739979597250,27.21872199,171.58,171.53,0.063]
[1739979598173,109.91872199,171.59,171.53,27.28172199]
[1739979598546,82.7,171.58,171.53,27.28172199]
[1739979599068,82.7,171.57,171.53,27.28172199]
[1739979599468,82.7,171.57,171.53,33.11132199]
[1739979600975,109.91872199,171.57,171.53,0.063]
[1739979601145,115.74722199,171.57,171.53,0.063]
[1739979601353,27.21872199,171.56,171.53,0.063]
[1739979601557,82.7,171.55,171.53,0.063]
[1739979602683,82.7,171.55,171.53,27.28172199]
[1739979602979,109.91872199,171.63,171.54,27.21872199]
[1739979603176,82.7,171.62,171.58,27.21872199]
[1739979605258,109.91872199,171.62,171.56,27.21872199]
[1739979605458,109.91872199,171.62,171.56,33.04742199]
[1739979605669,82.7,171.62,171.58,27.21872199]
[1739979605868,82.7,171.64,171.6,27.21872199]
[1739979606073,82.7,171.64,171.61,27.21872199]
[1739979606558,82.7,171.64,171.6,27.21872199]
[1739979606974,82.7,171.64,171.6,33.04602199]
[1739979607280,82.7,171.64,171.61,27.21872199]
[1739979607478,0.03,171.66,171.62,27.21872199]
[1739979607677,27.21872199,171.64,171.57,27.21872199]
[1739979607878,27.21872199,171.6,171.53,27.28172199]
[1739979608189,82.7,171.59,171.53,27.28172199]
[1739979608356,82.7,171.59,171.54,27.21872199]
[1739979608757,109.91872199,171.59,171.53,0.063]
[1739979608970,27.21872199,171.56,171.53,0.063]
[1739979609152,82.7,171.55,171.53,0.063]
[1739979609679,244.41872199,171.54,171.53,0.063]
[1739979610057,217.2,171.54,171.53,0.063]
[1739979610256,82.7,171.54,171.53,0.063]
[1739979610761,134.5,171.59,171.53,0.063]
[1739979610762,82.7,171.59,171.53,27.28172199]
[1739979610968,82.7,171.59,171.58,27.21872199]
[1739979611172,82.7,171.63,171.58,27.21872199]
[1739979611350,0.03,171.66,171.61,27.21872199]
[1739979611775,0.03,171.66,171.6,27.21872199]
[1739979611988,27.21872199,171.65,171.59,92.46]
[1739979612155,27.21872199,171.63,171.59,92.46]
[1739979612615,244.41872199,171.65,171.59,119.67872199]
[1739979612757,217.2,171.65,171.61,27.21872199]
[1739979613385,217.2,171.65,171.59,119.67872199]
[1739979614359,217.2,171.65,171.59,92.46]
[1739979614360,27.21872199,171.63,171.59,92.46]
[1739979614589,27.21872199,171.64,171.59,92.46]
[1739979614757,244.41872199,171.65,171.59,92.46]
[1739979615461,27.21872199,171.64,171.59,92.46]
[1739979615660,27.21872199,171.62,171.59,92.46]
[1739979615873,33.85422199,171.6,171.59,92.46]
[1739979616395,33.85422199,171.6,171.53,0.063]
[1739979616396,2.0,171.59,171.53,0.063]
[1739979616601,27.21872199,171.54,171.53,0.063]
[1739979616979,134.5,171.57,171.53,0.063]
[1739979616980,27.21872199,171.55,171.53,0.063]
[1739979617174,27.21872199,171.54,171.53,0.063]
[1739979617490,27.21872199,171.55,171.53,0.063]
[1739979617691,27.21872199,171.54,171.53,0.063]
[1739979617888,27.21872199,171.55,171.53,0.063]
[1739979618278,27.21872199,171.54,171.53,0.063]
[1739979619315,2.91941427,171.6,171.53,0.063]
[1739979619479,82.7,171.61,171.56,27.21872199]
[1739979619677,82.7,171.61,171.57,27.21872199]
[1739979619873,109.91872199,171.61,171.53,0.063]
[1739979620076,27.21872199,171.57,171.53,0.063]
[1739979620291,82.7,171.56,171.53,0.063]
[1739979620581,82.7,171.55,171.53,0.063]
[1739979620783,134.5,171.58,171.53,0.063]
[1739979620784,82.7,171.54,171.53,0.063]
[1739979621394,115.74822199,171.54,171.53,0.063]
[1739979621579,33.04822199,171.54,171.53,0.063]
[1739979621780,39.34792199,171.54,171.53,0.063]
[1739979622307,4.96,171.55,171.53,0.063]
[1739979622510,27.21872199,171.54,171.53,0.063]
[1739979622708,38.00802199,171.55,171.53,0.063]
[1739979623215,4.96,171.55,171.53,0.063]
[1739979623683,28.21872199,171.54,171.53,0.063]
[1739979623885,28.21872199,171.54,171.49,92.46]
[1739979623886,29.21872199,171.54,171.49,92.46]
[1739979624087,27.21872199,171.5,171.49,92.46]
[1739979625108,61.87394398,171.5,171.49,92.46]
[1739979625291,82.8296266,171.5,171.49,92.46]
[1739979625488,39.48612199,171.5,171.49,92.46]
[1739979625696,42.79826196,171.5,171.49,92.46]
[1739979626193,62.44791082,171.5,171.49,92.46]
[1739979626376,89.66663281,171.5,171.49,92.46]
[1739979626581,79.54376151,171.5,171.49,92.46]
[1739979627278,79.54376151,171.5,171.4,44.37757268]
[1739979627279,2.0,171.48,171.4,0.063]
[1739979627481,44.31457268,171.46,171.4,0.063]
[1739979628303,145.292,171.47,171.4,0.063]
[1739979628304,44.31457268,171.43,171.4,0.063]
[1739979628690,44.31457268,171.41,171.4,0.063]
[1739979628886,127.01457268,171.42,171.4,0.063]
[1739979629088,82.7,171.42,171.4,0.063]
[1739979630306,50.14847268,171.41,171.4,0.063]
[1739979633713,5.8322,171.46,171.4,44.37757268]
[1739979633908,223.0322,171.46,171.41,44.31457268]
[1739979634110,223.0322,171.46,171.4,44.37757268]
[1739979634603,267.34677268,171.46,171.4,44.37757268]
[1739979634915,223.0322,171.46,171.4,44.37757268]
[1739979635299,282.92737268,171.46,171.4,0.063]
[1739979635506,281.92737268,171.46,171.4,0.063]
[1739979635704,82.7,171.45,171.4,44.37757268]
[1739979635899,82.7,171.44,171.41,44.31457268]
[1739979636317,140.3322,171.46,171.41,44.31457268]
[1739979636318,82.7,171.43,171.41,44.31457268]
[1739979637018,82.7,171.43,171.4,0.063]
[1739979637690,88.5333,171.43,171.4,0.063]
[1739979639517,44.31457268,171.42,171.4,0.063]
[1739979639815,44.31457268,171.42,171.35,0.063]
[1739979639816,278.47067268,171.41,171.35,0.063]
[1739979640019,44.31457268,171.39,171.35,0.063]
[1739979640320,44.31457268,171.38,171.35,0.063]
[1739979641213,44.31457268,171.39,171.35,0.063]
[1739979641405,261.51457268,171.4,171.35,0.063]
[1739979641610,5.8346,171.39,171.35,0.063]
[1739979642024,44.31457268,171.37,171.35,0.063]
[1739979642205,261.51457268,171.36,171.35,0.063]
[1739979642403,217.2,171.36,171.35,0.063]
[1739979642803,261.51457268,171.36,171.35,0.063]
[1739979643121,44.31457268,171.36,171.35,0.063]
[1739979643307,44.31457268,171.38,171.35,0.063]
[1739979643494,5.8346,171.39,171.35,0.063]
[1739979643692,50.14887268,171.4,171.35,0.063]
[1739979643897,44.31457268,171.37,171.35,0.063]
[1739979644207,44.31457268,171.39,171.35,0.063]
[1739979644414,134.5,171.38,171.35,0.063]
[1739979644614,134.5,171.38,171.35,44.37757268]
[1739979644824,134.5,171.38,171.37,44.31457268]
[1739979645524,134.5,171.43,171.37,44.31457268]
[1739979645723,134.5,171.43,171.35,0.063]
[1739979645724,140.3328,171.45,171.4,44.31457268]
[1739979645912,134.5,171.44,171.39,44.31457268]
[1739979646109,178.81457268,171.43,171.37,44.31457268]
[1739979646429,134.5,171.43,171.38,44.31457268]
[1739979646832,134.5,171.43,171.38,27.27782137]
[1739979647333,134.5,171.43,171.39,27.27782137]
[1739979647711,134.5,171.43,171.4,27.27782137]
[1739979647918,134.5,171.43,171.39,27.27782137]
[1739979648123,140.3332,171.43,171.38,27.27782137]
[1739979648432,134.5,171.43,171.39,27.27782137]
[1739979649115,134.5,171.43,171.35,0.063]
[1739979649116,140.3333,171.43,171.38,27.27782137]
[1739979649314,140.3333,171.43,171.35,0.063]
[1739979649315,244.47782137,171.42,171.35,0.063]
[1739979649521,244.47782137,171.41,171.35,0.063]
[1739979649721,244.47782137,171.41,171.36,92.58]
[1739979650019,5.8343,171.4,171.36,92.58]
[1739979650542,33.11212137,171.4,171.36,92.58]
[1739979650711,27.27782137,171.39,171.36,92.58]
[1739979651239,10.7943,171.4,171.36,92.58]
[1739979651240,244.47782137,171.38,171.36,92.58]
[1739979651426,244.47782137,171.37,171.36,92.58]
[1739979651934,223.0353,171.37,171.36,92.58]
[1739979652309,33.11312137,171.37,171.36,92.58]
[1739979653727,51.76277023,171.37,171.36,92.58]
[1739979654032,52.76277023,171.37,171.36,92.58]
[1739979654429,53.76277023,171.37,171.36,92.61]
[1739979654638,53.76277023,171.37,171.36,80.346]
[1739979654805,53.76277023,171.37,171.36,75.173]
[1739979655002,53.76277023,171.37,171.36,44.1245]
[1739979655241,20.64964886,171.36,171.35,0.063]
[1739979655432,46.92747023,171.36,171.35,0.063]
[1739979655814,47.92747023,171.36,171.35,0.063]
[1739979656142,51.76307023,171.36,171.35,0.063]
[1739979656437,53.76307023,171.36,171.35,0.063]
[1739979656833,52.76307023,171.36,171.35,0.063]
[1739979657321,51.76307023,171.36,171.35,0.063]
[1739979658332,52.76307023,171.36,171.35,0.063]
[1739979658506,53.76307023,171.36,171.35,0.063]
[1739979658709,53.76307023,171.36,171.34,0.063]
[1739979658710,39.64964886,171.34,171.33,89.2503793]
[1739979659032,71.88747023,171.34,171.33,89.2503793]
[1739979660144,51.88747023,171.34,171.33,89.2503793]
[1739979660337,57.72377023,171.34,171.33,89.2503793]
[1739979661034,57.72377023,171.34,171.23,1.578]
[1739979661240,2.0,171.31,171.28,92.6]
[1739979661409,27.27782137,171.29,171.28,92.6]
[1739979661612,19.64964886,171.3,171.28,92.6]
[1739979661613,27.27782137,171.3,171.28,92.6]
[1739979661816,28.27782137,171.3,171.28,92.6]
[1739979662124,1.0,171.3,171.28,92.6]
[1739979662323,3.40692239,171.3,171.28,92.6]
[1739979662641,5.838,171.29,171.28,92.6]
[1739979663147,33.11582137,171.29,171.28,92.6]
[1739979664111,52.76547023,171.29,171.28,92.6]
[1739979666146,1.0,171.26,171.22,0.063]
[1739979666437,28.27782137,171.26,171.22,0.063]
[1739979666639,33.11722137,171.25,171.22,0.063]
[1739979666842,18.64964886,171.24,171.22,0.063]
[1739979667140,45.92747023,171.24,171.22,0.063]
[1739979667446,5.839,171.27,171.23,27.27782137]
[1739979667622,5.839,171.27,171.22,0.063]
[1739979668034,33.11682137,171.27,171.22,0.063]
[1739979668233,82.7,171.23,171.22,0.063]
[1739979669045,19.64964886,171.21,171.18,92.65]
[1739979669221,27.27782137,171.19,171.18,92.65]
[1739979669420,4.96,171.21,171.18,92.65]
[1739979669722,134.5,171.2,171.18,92.65]
[1739979669935,134.5,171.24,171.19,27.27782137]
[1739979670238,134.5,171.23,171.18,92.65]
[1739979670455,27.27782137,171.21,171.18,92.65]
[1739979670617,4.96,171.2,171.18,92.65]
[1739979670824,134.5,171.19,171.18,92.65]
[1739979671213,134.5,171.19,171.18,119.92782137]
[1739979671615,134.5,171.24,171.18,125.76962137]
[1739979671818,2.0,171.29,171.19,8.2957]
[1739979671819,134.5,171.23,171.19,8.2957]
[1739979672018,134.5,171.27,171.19,8.2957]
[1739979672247,134.5,171.26,171.19,1.6658]
[1739979672444,134.5,171.26,171.18,92.65]
[1739979672715,134.5,171.26,171.18,98.4916]
[1739979673133,134.5,171.27,171.25,27.27782137]
[1739979673325,134.5,171.29,171.25,27.27782137]
[1739979673643,82.7,171.26,171.25,27.27782137]
[1739979673959,82.7,171.26,171.21,27.27782137]
[1739979674127,217.2,171.25,171.19,27.27782137]
[1739979674317,217.2,171.24,171.2,27.27782137]
[1739979674642,217.2,171.23,171.21,27.27782137]
[1739979674843,82.7,171.22,171.21,27.27782137]
[1739979675021,82.7,171.22,171.21,33.11852137]
[1739979675646,82.7,171.22,171.21,27.27782137]
[1739979675939,82.7,171.26,171.21,33.11852137]
[1739979676146,82.7,171.26,171.25,27.27782137]
[1739979676350,82.7,171.26,171.21,5.8407]
[1739979676552,82.7,171.26,171.23,27.27782137]
[1739979676946,82.7,171.26,171.2,5.841]
[1739979677151,82.7,171.26,171.24,27.27782137]
[1739979677654,82.7,171.26,171.25,27.27782137]
[1739979677855,0.063,171.33,171.25,28.78732137]
[1739979677856,217.2,171.32,171.25,28.78732137]
[1739979678156,82.7,171.32,171.31,27.27782137]
[1739979678336,0.063,171.33,171.31,119.91782137]
[1739979678532,0.063,171.33,171.32,27.27782137]
[1739979678741,0.063,171.33,171.32,35.22352137]
[1739979678954,82.7,171.4,171.32,41.9358105]
[1739979679132,82.7,171.4,171.39,27.27782137]
[1739979680539,82.7,171.4,171.36,27.27782137]
[1739979680743,217.2,171.39,171.33,27.27782137]
[1739979680953,27.27782137,171.37,171.31,119.91782137]
[1739979681265,27.27782137,171.36,171.31,92.64]
[1739979681472,217.2,171.35,171.32,27.27782137]
[1739979681965,217.2,171.35,171.31,119.91782137]
[1739979682764,217.2,171.35,171.33,27.27782137]
[1739979682965,217.2,171.35,171.34,27.27782137]
[1739979683268,217.2,171.39,171.34,27.27782137]
[1739979683567,217.2,171.39,171.38,27.27782137]
[1739979683771,134.5,171.42,171.38,27.27782137]
[1739979683930,134.5,171.42,171.31,113.0705]
[1739979683931,217.2,171.42,171.39,27.27782137]
[1739979684357,217.2,171.42,171.38,27.27782137]
[1739979685259,223.0336,171.42,171.36,27.27782137]
[1739979685442,27.27782137,171.41,171.34,27.27782137]
[1739979685647,27.27782137,171.37,171.31,119.91782137]
[1739979685867,217.2,171.36,171.31,92.64]
[1739979686361,217.2,171.36,171.31,125.75512137]
[1739979686564,217.2,171.36,171.34,27.27782137]
[1739979688159,217.2,171.36,171.35,27.27782137]
[1739979688463,82.7,171.36,171.35,27.27782137]
[1739979688655,82.7,171.4,171.36,5.8356]
[1739979688859,87.66,171.42,171.39,27.27782137]
[1739979689051,82.7,171.42,171.4,27.27782137]
[1739979689260,82.7,171.41,171.37,1.5203]
[1739979689864,82.7,171.41,171.4,27.27782137]
[1739979690856,82.7,171.41,171.4,33.11212137]
[1739979691364,0.063,171.43,171.4,33.11212137]
[1739979691569,0.063,171.43,171.42,27.27782137]
[1739979692556,0.063,171.43,171.41,27.27782137]
[1739979692957,82.7,171.42,171.4,27.27782137]
[1739979693156,82.7,171.41,171.37,27.27782137]
[1739979693356,82.7,171.4,171.39,92.58]
[1739979693967,134.563,171.43,171.39,92.58]
[1739979694169,27.27782137,171.41,171.39,92.58]
[1739979694361,134.5,171.4,171.39,92.58]
[1739979694561,161.77782137,171.4,171.39,92.58]
[1739979694762,27.27782137,171.4,171.39,92.58]
[1739979695058,5.8343,171.4,171.39,92.58]
[1739979695259,33.11212137,171.4,171.39,92.58]
[1739979727892,4.96,171.26,171.23,27.27782137]
[1739979759840,217.2,171.23,171.18,0.03]
[1739979760038,27.27782137,171.22,171.18,0.03]
[1739979760231,217.2,171.21,171.18,0.03]
[1739979760426,82.7,171.2,171.18,0.03]
[1739979760734,82.7,171.19,171.18,0.03]
[1739979760930,134.5,171.21,171.18,0.03]
[1739979761137,38.07792137,171.23,171.18,0.03]
[1739979761336,134.5,171.21,171.18,0.03]
[1739979761731,38.07792137,171.23,171.2,27.27782137]
[1739979761732,134.5,171.22,171.2,27.27782137]
[1739979762039,134.5,171.22,171.19,27.27782137]
[1739979762232,134.5,171.22,171.18,27.30782137]
[1739979762538,134.5,171.21,171.18,0.03]
[1739979762718,134.5,171.21,171.18,27.30782137]
[1739979763040,134.5,171.21,171.19,27.27782137]
[1739979763630,134.5,171.27,171.2,27.27782137]
[1739979763818,134.5,171.27,171.22,27.27782137]
[1739979764143,140.3387,171.27,171.23,92.64]
[1739979764723,167.61652137,171.27,171.23,92.64]
[1739979765249,27.27782137,171.26,171.23,92.64]
[1739979765460,27.27782137,171.24,171.23,92.64]
[1739979766322,244.47782137,171.25,171.23,92.64]
[1739979766526,27.27782137,171.24,171.23,92.64]
[1739979766729,33.11752137,171.24,171.23,92.64]
[1739979767335,244.47782137,171.25,171.23,92.64]
[1739979767545,250.31722137,171.25,171.23,92.64]
[1739979769152,255.27722137,171.25,171.23,92.64]
[1739979769459,217.2,171.24,171.23,92.64]
[1739979769658,215.7,171.24,171.23,92.64]
[1739979770431,133.0,171.25,171.23,92.64]
[1739979770638,133.0,171.25,171.23,119.91782137]
[1739979771440,82.7,171.27,171.24,27.27782137]
[1739979771641,82.7,171.27,171.26,27.27782137]
[1739979772154,82.7,171.27,171.23,92.64]
[1739979772360,82.7,171.27,171.24,27.27782137]
[1739979772963,82.7,171.27,171.23,119.91782137]
[1739979773157,82.7,171.27,171.23,92.64]
[1739979773362,88.5387,171.27,171.23,92.64]
[1739979773560,115.81652137,171.27,171.23,92.64]
[1739979773766,120.77652137,171.27,171.2,119.91782137]
[1739979773944,215.7,171.26,171.2,119.91782137]
[1739979774640,242.97782137,171.26,171.2,92.64]
[1739979775076,5.8394,171.25,171.2,92.64]
[1739979775476,5.8394,171.25,171.2,119.91782137]
[1739979775644,33.11722137,171.25,171.2,92.64]
[1739979775844,5.8394,171.25,171.2,92.64]
[1739979776348,248.81692137,171.26,171.2,119.91782137]
[1739979776867,221.5391,171.26,171.2,119.91782137]
[1739979777053,215.7,171.26,171.22,27.27782137]
[1739979778062,215.763,171.26,171.22,27.27782137]
[1739979778254,82.7,171.25,171.22,27.27782137]
[1739979780283,82.7,171.25,171.2,119.94782137]
[1739979780645,115.81732137,171.25,171.2,92.67]
[1739979780858,242.97782137,171.24,171.2,92.67]
[1739979781072,215.7,171.24,171.2,92.67]
[1739979781347,215.7,171.23,171.2,92.67]
[1739979781582,82.7,171.22,171.2,98.5111]
[1739979781778,82.7,171.22,171.2,92.67]
[1739979781973,82.7,171.22,171.21,27.27782137]
[1739979782174,82.763,171.26,171.21,27.27782137]
[1739979782363,82.763,171.26,171.25,27.27782137]
[1739979783081,82.763,171.26,171.24,27.27782137]
[1739979784096,82.763,171.26,171.22,27.27782137]
[1739979784883,82.763,171.26,171.23,27.27782137]
[1739979785189,82.763,171.26,171.21,27.27782137]
[1739979785397,82.7,171.25,171.21,33.11852137]
[1739979785695,82.7,171.24,171.21,27.27782137]
[1739979785895,82.7,171.24,171.2,119.94782137]
[1739979786196,82.7,171.23,171.2,92.67]
[1739979786692,82.7,171.23,171.2,119.94782137]
[1739979786862,82.7,171.23,171.2,92.67]
[1739979787461,82.7,171.23,171.2,125.78882137]
[1739979788290,82.7,171.23,171.21,27.27782137]
[1739979788662,82.7,171.23,171.22,27.27782137]
[1739979788896,82.7,171.25,171.22,27.27782137]
[1739979789071,82.7,171.25,171.24,27.27782137]
[1739979789461,0.063,171.26,171.24,33.11752137]
[1739979789684,0.063,171.26,171.25,27.27782137]
[1739979790896,0.0001,171.26,171.25,47.92747023]
[1739979791399,0.063,171.29,171.28,1.0]
[1739979791594,0.0001,171.29,171.28,35.99149951]
[1739979791781,0.0001,171.29,171.28,62.26932088]
[1739979791985,0.0001,171.29,171.28,34.99149951]
[1739979792168,0.0001,171.29,171.28,35.99149951]
[1739979792364,0.0001,171.29,171.28,162.81896974]
[1739979792592,217.2,171.42,171.32,18.64964886]
[1739979792764,0.0001,171.33,171.32,137.62560364]
[1739979792974,82.7,171.41,171.36,1.0]
[1739979793181,82.763,171.43,171.4,27.27782137]
[1739979793390,82.763,171.43,171.41,27.27782137]
[1739979794103,82.763,171.43,171.4,27.27782137]
[1739979795306,0.063,171.43,171.42,27.27782137]
[1739979796090,0.063,171.43,171.42,33.11142137]
[1739979796392,0.063,171.43,171.42,27.27782137]
[1739979796802,0.063,171.43,171.38,0.8749039]
[1739979797092,0.063,171.43,171.39,27.27782137]
[1739979797315,0.063,171.43,171.4,27.27782137]
[1739979797824,0.063,171.43,171.41,27.27782137]
[1739979798005,0.063,171.43,171.42,27.27782137]
[1739979801899,0.063,171.43,171.37,97.6]
[1739979802084,82.7,171.42,171.39,27.27782137]
[1739979802486,82.7,171.42,171.4,27.27782137]
[1739979802693,82.7,171.42,171.41,27.27782137]
[1739979803998,82.7,171.42,171.41,33.11172137]
[1739979804625,0.063,171.43,171.41,34.11172137]
[1739979804924,0.063,171.43,171.42,27.27782137]
[1739979805283,0.063,171.43,171.42,28.15263994]
[1739979805490,0.063,171.43,171.42,47.8022888]
[1739979805720,0.063,171.43,171.42,48.8022888]
[1739979806104,0.063,171.43,171.42,34.98623994]
[1739979806513,0.063,171.43,171.42,33.98623994]
[1739979806893,0.063,171.43,171.42,33.11142137]
[1739979807694,0.063,171.43,171.4,92.58]
[1739979807910,27.27782137,171.42,171.4,92.58]
[1739979808215,33.11142137,171.42,171.4,92.58]
[1739979808693,244.47782137,171.41,171.4,92.58]
[1739979808892,28.90572137,171.41,171.4,92.58]
[1739979809108,53.72137023,171.41,171.4,92.58]
[1739979809299,53.72137023,171.41,171.4,55.5437]
[1739979809502,80.9991916,171.41,171.3,92.56]
[1739979809714,27.27782137,171.35,171.3,92.56]
[1739979810333,32.21782137,171.4,171.3,92.56]
[1739979810334,4.94,171.4,171.3,119.83782137]
[1739979810498,27.27782137,171.38,171.31,27.27782137]
[1739979810825,27.27782137,171.39,171.33,27.27782137]
[1739979811129,4.94,171.4,171.32,27.27782137]
[1739979811303,27.27782137,171.39,171.32,27.27782137]
[1739979811924,33.11242137,171.39,171.32,27.27782137]
[1739979812794,5.8346,171.39,171.32,27.27782137]
[1739979812998,33.11242137,171.39,171.32,27.27782137]
[1739979813939,217.2,171.38,171.32,27.27782137]
[1739979814105,217.2,171.38,171.34,27.27782137]
[1739979814307,82.7,171.38,171.35,27.27782137]
[1739979814510,82.7,171.38,171.36,27.27782137]
[1739979814835,82.7,171.38,171.37,27.27782137]
[1739979816333,0.063,171.4,171.37,33.11312137]
[1739979816504,0.063,171.4,171.39,27.27782137]
[1739979818207,0.063,171.4,171.38,27.27782137]
[1739979818511,0.063,171.4,171.39,27.27782137]
[1739979819932,0.063,171.4,171.37,33.11312137]
[1739979820133,0.063,171.4,171.36,27.27782137]
[1739979820734,82.7,171.39,171.34,33.11412137]
[1739979820941,82.7,171.38,171.34,27.27782137]
[1739979821340,82.7,171.38,171.32,0.03]
[1739979821341,109.97782137,171.38,171.32,5.8669]
[1739979821715,109.97782137,171.37,171.32,5.8669]
[1739979821916,82.7,171.36,171.32,5.8669]
[1739979822236,82.7,171.35,171.32,0.03]
[1739979822536,82.7,171.34,171.32,0.03]
[1739979824041,82.7,171.34,171.33,27.27782137]
[1739979824432,82.7,171.39,171.33,27.27782137]
[1739979824644,82.7,171.38,171.35,27.27782137]
[1739979824826,82.7,171.38,171.34,1.7]
[1739979825752,82.7,171.38,171.35,27.27782137]
[1739979826043,115.81312137,171.37,171.34,1.7]
[1739979826417,109.97782137,171.37,171.34,1.7]
[1739979827646,82.7,171.37,171.34,1.7]
[1739979827943,82.7,171.37,171.34,34.81402137]
[1739979829227,82.7,171.37,171.35,27.27782137]
[1739979829547,82.7,171.39,171.35,27.27782137]
[1739979829918,244.47782137,171.38,171.34,1.7]
[1739979830249,5.8356,171.36,171.34,1.7]
[1739979830927,244.47782137,171.35,171.34,1.7]
[1739979831246,27.27782137,171.35,171.34,1.7]
[1739979832860,33.11382137,171.35,171.34,1.7]
[1739979833722,35.45353374,171.35,171.34,1.7]
[1739979833928,29.61753374,171.35,171.34,1.7]
[1739979834117,35.45353374,171.35,171.34,1.7]
[1739979834324,29.61753374,171.35,171.34,1.7]
[1739979834644,27.27782137,171.37,171.34,1.7]
[1739979834959,161.77782137,171.37,171.34,1.7]
[1739979835135,27.27782137,171.35,171.34,1.7]
[1739979835528,161.77782137,171.36,171.34,1.7]
[1739979836245,134.5,171.36,171.34,1.7]
[1739979837122,27.27782137,171.35,171.34,1.7]
[1739979837338,161.77782137,171.36,171.34,1.7]
[1739979838637,27.27782137,171.35,171.34,1.7]
[1739979839748,27.27782137,171.35,171.34,1.73]
[1739979841343,33.11382137,171.35,171.34,1.73]
[1739979844261,5.836,171.35,171.34,1.73]
[1739979845462,27.27782137,171.36,171.34,1.73]
[1739979845662,6.3173,171.4,171.34,1.73]
[1739979845663,134.5,171.38,171.34,1.73]
[1739979845969,134.5,171.38,171.35,27.27782137]
[1739979846263,134.5,171.38,171.36,27.27782137]
[1739979846449,134.5,171.38,171.35,27.27782137]
[1739979846644,134.5,171.38,171.34,29.00782137]
[1739979846842,134.5,171.38,171.34,1.73]
[1739979847045,27.27782137,171.37,171.34,1.73]